Workbook

Sheet Sheet1
B1: The Slope (or Tangent) Field
C2: for y' = f(x, y)
B4: This graphing utility produces
B5: the slope (or tangent) field
B6: for any first order differential equation
D7: y' = f(x, y)
B8: and the graph of a particular solution
B9: with initial conditions x0 and y0
A11: Enter the function in terms of both x and y:
E12: f(x, y) = | F12: x*sin(y)
A14: Next enter the horizontal interval for the solution::
C15: xMin = | D15: 0
C16: xMax = | D16: 4
A18: Now enter the vertical range for the display: | J18: The slope field for the D.E. y' = | M18: =F12 -> x*sin(y)
C19: yMin = | D19: 0
C20: yMax = | D20: 7 | I20: Now select the initial conditions for a particular solution:
K22: x0 = | L22: =xMin+L23*(xMax-xMin)/100 -> 0.8
L23: 20
A24: Click each item below for suggestions and investigations
B25: Item 1 | K25: y0 = | L25: =yMin+L26*(yMax-yMin)/100 -> 3.71
B26: Item 2 | L26: 53
B27: Item 3
B28: Item 4
B29: Item 5
A33: To access/download all the DIGMath Apps for Calculus
A34: Click this link: | C34: DIGMath for Calculus
A36: Created by: Sheldon P. Gordon
A37: Farmingdale State College
A38: Development of this module was supported by the
A39: NSF's Division of Undergraduate Education
A40: under grants DUE-0310123 and DUE-0442160.

Sheet Sheet2
C1: x | D1: y | E1: y' = f(x,y) | F1: y | H1: strip 1 | I1: =C$261 -> 0 | J1: =D261 -> 0
I2: =F$261 -> 0.2333333333 | J2: =G261 -> 0
C3: =x0 -> 0.8 | D3: =y0 -> 3.71 | E3: =x*SIN(y) -> -0.4306324066 | F3: =y0 -> 3.71 | I3: =C$261 -> 0 | J3: =D262 -> 0.35
A4: delta x = | B4: =(xMax-xMin)/257 -> 0.01556420233 | C4: =C3+dx -> 0.8155642023 | D4: =F4 -> 3.70329755 | E4: -0.4343938857 | F4: =F3+E3*dx -> 3.70329755 | I4: =F$261 -> 0.2333333333 | J4: =G262 -> 0.35
C5: 0.8311284047 | D5: =F5 -> 3.696536556 | E5: -0.4379179176 | F5: 3.696536556 | I5: =C$261 -> 0 | J5: =D263 -> 0.7
C6: 0.846692607 | D6: 3.689720713 | E6: -0.4412034219 | F6: 3.689720713 | I6: =F$261 -> 0.2333333333 | J6: =G263 -> 0.7
A7: xMin = | B7: =x0 -> 0.8 | C7: 0.8622568093 | D7: 3.682853733 | E7: -0.4442495576 | F7: 3.682853733 | I7: =C$261 -> 0 | J7: =D264 -> 1.05
A8: xMax = | B8: =xMax -> 4 | C8: 0.8778210117 | D8: 3.675939343 | E8: -0.4470557266 | F8: 3.675939343 | I8: =F$261 -> 0.2333333333 | J8: =G264 -> 1.05
C9: 0.893385214 | D9: 3.668981278 | E9: -0.4496215761 | F9: 3.668981278 | I9: =C$261 -> 0 | J9: =D265 -> 1.4
A10: b = | B10: 0 | C10: 0.9089494163 | D10: 3.661983276 | E10: -0.4519470015 | F10: 3.661983276 | I10: =F$261 -> 0.2333333333 | J10: =G265 -> 1.4
C11: 0.9245136187 | D11: 3.654949082 | E11: -0.4540321475 | F11: 3.654949082 | I11: =C$261 -> 0 | J11: =D266 -> 1.75
A12: field spacing | C12: 0.940077821 | D12: 3.647882434 | E12: -0.4558774091 | F12: 3.647882434 | I12: =F$261 -> 0.2333333333 | J12: =G266 -> 1.75
A13: dxx = | B13: =(xMax-xMin)/12 -> 0.3333333333 | C13: 0.9556420233 | D13: 3.640787065 | E13: -0.4574834328 | F13: 3.640787065 | I13: =C$261 -> 0 | J13: =D267 -> 2.1
A14: dyy = | B14: =(yMax-yMin)/20 -> 0.35 | C14: 0.9712062257 | D14: 3.633666701 | E14: -0.4588511155 | F14: 3.633666701 | I14: =F$261 -> 0.2333333333 | J14: =G267 -> 2.1
C15: 0.986770428 | D15: 3.626525049 | E15: -0.4599816045 | F15: 3.626525049 | I15: =C$261 -> 0 | J15: =D268 -> 2.45
C16: 1.00233463 | D16: 3.619365802 | E16: -0.4608762961 | F16: 3.619365802 | I16: =F$261 -> 0.2333333333 | J16: =G268 -> 2.45
C17: 1.017898833 | D17: 3.61219263 | E17: -0.4615368329 | F17: 3.61219263 | I17: =C$261 -> 0 | J17: =D269 -> 2.8
A18: start point | C18: 1.033463035 | D18: 3.605009178 | E18: -0.4619651023 | F18: 3.605009178 | I18: =F$261 -> 0.2333333333 | J18: =G269 -> 2.8
A19: =x0 -> 0.8 | C19: 1.049027237 | D19: 3.597819059 | E19: -0.4621632325 | F19: 3.597819059 | I19: =C$261 -> 0 | J19: =D270 -> 3.15
A20: =y0 -> 3.71 | C20: 1.06459144 | D20: 3.590625857 | E20: -0.462133589 | F20: 3.590625857 | I20: =F$261 -> 0.2333333333 | J20: =G270 -> 3.15
C21: 1.080155642 | D21: 3.583433117 | E21: -0.4618787703 | F21: 3.583433117 | I21: =C$261 -> 0 | J21: =D271 -> 3.5
C22: 1.095719844 | D22: 3.576244342 | E22: -0.4614016027 | F22: 3.576244342 | I22: =F$261 -> 0.2333333333 | J22: =G271 -> 3.5
C23: 1.111284047 | D23: 3.569062994 | E23: -0.4607051353 | F23: 3.569062994 | I23: =C$261 -> 0 | J23: =D272 -> 3.85
C24: 1.126848249 | D24: 3.561892486 | E24: -0.4597926334 | F24: 3.561892486 | I24: =F$261 -> 0.2333333333 | J24: =G272 -> 3.85
C25: 1.142412451 | D25: 3.554736181 | E25: -0.4586675725 | F25: 3.554736181 | I25: =C$261 -> 0 | J25: =D273 -> 4.2
C26: 1.157976654 | D26: 3.547597386 | E26: -0.4573336306 | F26: 3.547597386 | I26: =F$261 -> 0.2333333333 | J26: =G273 -> 4.2
C27: 1.173540856 | D27: 3.540479353 | E27: -0.4557946817 | F27: 3.540479353 | I27: =C$261 -> 0 | J27: =D274 -> 4.55
C28: 1.189105058 | D28: 3.533385272 | E28: -0.4540547869 | F28: 3.533385272 | I28: =F$261 -> 0.2333333333 | J28: =G274 -> 4.55
C29: 1.204669261 | D29: 3.526318271 | E29: -0.4521181867 | F29: 3.526318271 | I29: =C$261 -> 0 | J29: =D275 -> 4.9
C30: 1.220233463 | D30: 3.519281412 | E30: -0.4499892923 | F30: 3.519281412 | I30: =F$261 -> 0.2333333333 | J30: =G275 -> 4.9
C31: 1.235797665 | D31: 3.512277688 | E31: -0.4476726763 | F31: 3.512277688 | I31: =C$261 -> 0 | J31: =D276 -> 5.25
C32: 1.251361868 | D32: 3.50531002 | E32: -0.4451730638 | F32: 3.50531002 | I32: =F$261 -> 0.2333333333 | J32: =G276 -> 5.25
C33: 1.26692607 | D33: 3.498381256 | E33: -0.4424953224 | F33: 3.498381256 | I33: =C$261 -> 0 | J33: =D277 -> 5.6
C34: 1.282490272 | D34: 3.491494169 | E34: -0.439644453 | F34: 3.491494169 | I34: =F$261 -> 0.2333333333 | J34: =G277 -> 5.6
C35: 1.298054475 | D35: 3.484651454 | E35: -0.4366255792 | F35: 3.484651454 | I35: =C$261 -> 0 | J35: =D278 -> 5.95
C36: 1.313618677 | D36: 3.477855725 | E36: -0.4334439377 | F36: 3.477855725 | I36: =F$261 -> 0.2333333333 | J36: =G278 -> 5.95
C37: 1.329182879 | D37: 3.471109516 | E37: -0.4301048678 | F37: 3.471109516 | I37: =C$261 -> 0 | J37: =D279 -> 6.3
C38: 1.344747082 | D38: 3.464415277 | E38: -0.4266138013 | F38: 3.464415277 | I38: =F$261 -> 0.2333333333 | J38: =G279 -> 6.3
C39: 1.360311284 | D39: 3.457775374 | E39: -0.4229762519 | F39: 3.457775374 | I39: =C$261 -> 0 | J39: =D280 -> 6.65
C40: 1.375875486 | D40: 3.451192086 | E40: -0.4191978049 | F40: 3.451192086 | I40: =F$261 -> 0.2333333333 | J40: =G280 -> 6.65
C41: 1.391439689 | D41: 3.444667606 | E41: -0.4152841071 | F41: 3.444667606 | I41: =C$261 -> 0 | J41: =D281 -> 7
C42: 1.407003891 | D42: 3.43820404 | E42: -0.4112408563 | F42: 3.43820404 | I42: =F$261 -> 0.2333333333 | J42: =G281 -> 7
C43: 1.422568093 | D43: 3.431803404 | E43: -0.4070737912 | F43: 3.431803404 | H43: strip 2 | I43: =C$282 -> 0.3333333333 | J43: =D282 -> 0
C44: 1.438132296 | D44: 3.425467626 | E44: -0.4027886811 | F44: 3.425467626 | I44: =F$282 -> 0.5666666667 | J44: =G282 -> 0
C45: 1.453696498 | D45: 3.419198541 | E45: -0.3983913165 | F45: 3.419198541 | I45: =C$282 -> 0.3333333333 | J45: =D283 -> 0.35
C46: 1.4692607 | D46: 3.412997898 | E46: -0.393887499 | F46: 3.412997898 | I46: =F$282 -> 0.5666666667 | J46: =G283 -> 0.3880997564
C47: 1.484824903 | D47: 3.406867353 | E47: -0.3892830316 | F47: 3.406867353 | I47: =C$282 -> 0.3333333333 | J47: =D284 -> 0.7
C48: 1.500389105 | D48: 3.400808473 | E48: -0.3845837099 | F48: 3.400808473 | I48: =F$282 -> 0.5666666667 | J48: =G284 -> 0.771579743
C49: 1.515953307 | D49: 3.394822735 | E49: -0.3797953125 | F49: 3.394822735 | I49: =C$282 -> 0.3333333333 | J49: =D285 -> 1.05
C50: 1.53151751 | D50: 3.388911524 | E50: -0.3749235926 | F50: 3.388911524 | I50: =F$282 -> 0.5666666667 | J50: =G285 -> 1.146380358
C51: 1.547081712 | D51: 3.383076137 | E51: -0.3699742693 | F51: 3.383076137 | I51: =C$282 -> 0.3333333333 | J51: =D286 -> 1.4
C52: 1.562645914 | D52: 3.377317783 | E52: -0.3649530195 | F52: 3.377317783 | I52: =F$282 -> 0.5666666667 | J52: =G286 -> 1.509494414
C53: 1.578210117 | D53: 3.37163758 | E53: -0.3598654696 | F53: 3.37163758 | I53: =C$282 -> 0.3333333333 | J53: =D287 -> 1.75
C54: 1.593774319 | D54: 3.366036561 | E54: -0.3547171888 | F54: 3.366036561 | I54: =F$282 -> 0.5666666667 | J54: =G287 -> 1.859331772
C55: 1.609338521 | D55: 3.360515671 | E55: -0.3495136809 | F55: 3.360515671 | I55: =C$282 -> 0.3333333333 | J55: =D288 -> 2.1
C56: 1.624902724 | D56: 3.355075769 | E56: -0.3442603781 | F56: 3.355075769 | I56: =F$282 -> 0.5666666667 | J56: =G288 -> 2.195912152
C57: 1.640466926 | D57: 3.349717631 | E57: -0.3389626341 | F57: 3.349717631 | I57: =C$282 -> 0.3333333333 | J57: =D289 -> 2.45
C58: 1.656031128 | D58: 3.344441948 | E58: -0.3336257182 | F58: 3.344441948 | I58: =F$282 -> 0.5666666667 | J58: =G289 -> 2.520862745
C59: 1.671595331 | D59: 3.33924933 | E59: -0.3282548093 | F59: 3.33924933 | I59: =C$282 -> 0.3333333333 | J59: =D290 -> 2.8
C60: 1.687159533 | D60: 3.334140305 | E60: -0.3228549905 | F60: 3.334140305 | I60: =F$282 -> 0.5666666667 | J60: =G290 -> 2.837220906
C61: 1.702723735 | D61: 3.329115325 | E61: -0.3174312444 | F61: 3.329115325 | I61: =C$282 -> 0.3333333333 | J61: =D291 -> 3.15
C62: 1.718287938 | D62: 3.324174761 | E62: -0.3119884478 | F62: 3.324174761 | I62: =F$282 -> 0.5666666667 | J62: =G291 -> 3.149065861
C63: 1.73385214 | D63: 3.31931891 | E63: -0.3065313678 | F63: 3.31931891 | I63: =C$282 -> 0.3333333333 | J63: =D292 -> 3.5
C64: 1.749416342 | D64: 3.314547993 | E64: -0.3010646577 | F64: 3.314547993 | I64: =F$282 -> 0.5666666667 | J64: =G292 -> 3.461024086
C65: 1.764980545 | D65: 3.309862162 | E65: -0.2955928535 | F65: 3.309862162 | I65: =C$282 -> 0.3333333333 | J65: =D293 -> 3.85
C66: 1.780544747 | D66: 3.305261495 | E66: -0.2901203707 | F66: 3.305261495 | I66: =F$282 -> 0.5666666667 | J66: =G293 -> 3.777708318
C67: 1.796108949 | D67: 3.300746003 | E67: =x*SIN(y) -> -0.2846515009 | F67: 3.300746003 | I67: =C$282 -> 0.3333333333 | J67: =D294 -> 4.2
C68: =C67+dx -> 1.811673152 | D68: 3.296315629 | E68: -0.2791904099 | F68: =F67+E67*dx -> 3.296315629 | I68: =F$282 -> 0.5666666667 | J68: =G294 -> 4.103158248
C69: 1.827237354 | D69: =F69 -> 3.291970253 | E69: -0.2737411353 | F69: 3.291970253 | I69: =C$282 -> 0.3333333333 | J69: =D295 -> 4.55
C70: 1.842801556 | D70: 3.287709691 | E70: -0.2683075843 | F70: 3.287709691 | I70: =F$282 -> 0.5666666667 | J70: =G295 -> 4.440350682
C71: 1.858365759 | D71: 3.283533698 | E71: -0.2628935324 | F71: 3.283533698 | I71: =C$282 -> 0.3333333333 | J71: =D296 -> 4.9
C72: 1.873929961 | D72: 3.279441969 | E72: -0.2575026219 | F72: 3.279441969 | I72: =F$282 -> 0.5666666667 | J72: =G296 -> 4.790838599
C73: 1.889494163 | D73: 3.275434146 | E73: -0.2521383614 | F73: 3.275434146 | I73: =C$282 -> 0.3333333333 | J73: =D297 -> 5.25
C74: 1.905058366 | D74: 3.271509814 | E74: -0.2468041244 | F74: 3.271509814 | I74: =F$282 -> 0.5666666667 | J74: =G297 -> 5.154562834
C75: 1.920622568 | D75: 3.267668505 | E75: -0.2415031495 | F75: 3.267668505 | I75: =C$282 -> 0.3333333333 | J75: =D298 -> 5.6
C76: 1.93618677 | D76: 3.263909701 | E76: -0.2362385398 | F76: 3.263909701 | I76: =F$282 -> 0.5666666667 | J76: =G298 -> 5.529859262
C77: 1.951750973 | D77: 3.260232836 | E77: -0.2310132633 | F77: 3.260232836 | I77: =C$282 -> 0.3333333333 | J77: =D299 -> 5.95
C78: 1.967315175 | D78: 3.256637299 | E78: -0.2258301529 | F78: 3.256637299 | I78: =F$282 -> 0.5666666667 | J78: =G299 -> 5.913660576
C79: 1.982879377 | D79: 3.253122433 | E79: -0.2206919076 | F79: 3.253122433 | I79: =C$282 -> 0.3333333333 | J79: =D300 -> 6.3
C80: 1.99844358 | D80: 3.249687539 | E80: -0.2156010923 | F80: 3.249687539 | I80: =F$282 -> 0.5666666667 | J80: =G300 -> 6.301868211
C81: 2.014007782 | D81: 3.24633188 | E81: -0.2105601399 | F81: 3.24633188 | I81: =C$282 -> 0.3333333333 | J81: =D301 -> 6.65
C82: 2.029571984 | D82: 3.24305468 | E82: -0.2055713514 | F82: 3.24305468 | I82: =F$282 -> 0.5666666667 | J82: =G301 -> 6.689849317
C83: 2.045136187 | D83: 3.239855126 | E83: -0.2006368981 | F83: 3.239855126 | I83: =C$282 -> 0.3333333333 | J83: =D302 -> 7
C84: 2.060700389 | D84: 3.236732372 | E84: -0.1957588229 | F84: 3.236732372 | I84: =F$282 -> 0.5666666667 | J84: =G302 -> 7.072998511
C85: 2.076264591 | D85: 3.233685543 | E85: -0.1909390416 | F85: 3.233685543 | H85: strip 3 | I85: =C$303 -> 0.6666666667 | J85: =D303 -> 0
C86: 2.091828794 | D86: 3.230713729 | E86: -0.1861793454 | F86: 3.230713729 | I86: =F$303 -> 0.9 | J86: =G303 -> 0
C87: 2.107392996 | D87: 3.227815996 | E87: -0.1814814024 | F87: 3.227815996 | I87: =C$303 -> 0.6666666667 | J87: =D304 -> 0.35
C88: 2.122957198 | D88: 3.224991382 | E88: -0.17684676 | F88: 3.224991382 | I88: =F$303 -> 0.9 | J88: =G304 -> 0.4261995128
C89: 2.138521401 | D89: 3.222238904 | E89: -0.1722768469 | F89: 3.222238904 | I89: =C$303 -> 0.6666666667 | J89: =D305 -> 0.7
C90: 2.154085603 | D90: 3.219557552 | E90: -0.1677729757 | F90: 3.219557552 | I90: =F$303 -> 0.9 | J90: =G305 -> 0.8431594861
C91: 2.169649805 | D91: 3.216946299 | E91: -0.1633363452 | F91: 3.216946299 | I91: =C$303 -> 0.6666666667 | J91: =D306 -> 1.05
C92: 2.185214008 | D92: 3.214404099 | E92: -0.1589680428 | F92: 3.214404099 | I92: =F$303 -> 0.9 | J92: =G306 -> 1.242760717
C93: 2.20077821 | D93: 3.211929889 | E93: -0.1546690476 | F93: 3.211929889 | I93: =C$303 -> 0.6666666667 | J93: =D307 -> 1.4
C94: 2.216342412 | D94: 3.209522588 | E94: -0.1504402326 | F94: 3.209522588 | I94: =F$303 -> 0.9 | J94: =G307 -> 1.618988829
C95: 2.231906615 | D95: 3.207181106 | E95: -0.1462823677 | F95: 3.207181106 | I95: =C$303 -> 0.6666666667 | J95: =D308 -> 1.75
C96: 2.247470817 | D96: 3.204904338 | E96: -0.1421961223 | F96: 3.204904338 | I96: =F$303 -> 0.9 | J96: =G308 -> 1.968663544
C97: 2.263035019 | D97: 3.202691169 | E97: -0.1381820685 | F97: 3.202691169 | I97: =C$303 -> 0.6666666667 | J97: =D309 -> 2.1
C98: 2.278599222 | D98: 3.200540475 | E98: -0.1342406838 | F98: 3.200540475 | I98: =F$303 -> 0.9 | J98: =G309 -> 2.291824304
C99: 2.294163424 | D99: 3.198451126 | E99: -0.130372354 | F99: 3.198451126 | I99: =C$303 -> 0.6666666667 | J99: =D310 -> 2.45
C100: 2.309727626 | D100: 3.196421984 | E100: -0.1265773762 | F100: 3.196421984 | I100: =F$303 -> 0.9 | J100: =G310 -> 2.591725489
C101: 2.325291829 | D101: 3.194451908 | E101: -0.1228559619 | F101: 3.194451908 | I101: =C$303 -> 0.6666666667 | J101: =D311 -> 2.8
C102: 2.340856031 | D102: 3.192539753 | E102: -0.1192082398 | F102: 3.192539753 | I102: =F$303 -> 0.9 | J102: =G311 -> 2.874441811
C103: 2.356420233 | D103: 3.190684372 | E103: -0.1156342588 | F103: 3.190684372 | I103: =C$303 -> 0.6666666667 | J103: =D312 -> 3.15
C104: 2.371984436 | D104: 3.188884617 | E104: -0.1121339914 | F104: 3.188884617 | I104: =F$303 -> 0.9 | J104: =G312 -> 3.148131723
C105: 2.387548638 | D105: 3.187139341 | E105: -0.1087073362 | F105: 3.187139341 | I105: =C$303 -> 0.6666666667 | J105: =D313 -> 3.5
C106: 2.40311284 | D106: 3.185447398 | E106: -0.1053541211 | F106: 3.185447398 | I106: =F$303 -> 0.9 | J106: =G313 -> 3.422048172
C107: 2.418677043 | D107: 3.183807645 | E107: -0.1020741062 | F107: 3.183807645 | I107: =C$303 -> 0.6666666667 | J107: =D314 -> 3.85
C108: 2.434241245 | D108: 3.182218943 | E108: -0.09886698716 | F108: 3.182218943 | I108: =F$303 -> 0.9 | J108: =G314 -> 3.705416636
C109: 2.449805447 | D109: 3.180680157 | E109: -0.09573239742 | F109: 3.180680157 | I109: =C$303 -> 0.6666666667 | J109: =D315 -> 4.2
C110: 2.46536965 | D110: 3.179190159 | E110: -0.09266991172 | F110: 3.179190159 | I110: =F$303 -> 0.9 | J110: =G315 -> 4.006316495
C111: 2.480933852 | D111: 3.177747825 | E111: -0.0896790487 | F111: 3.177747825 | I111: =C$303 -> 0.6666666667 | J111: =D316 -> 4.55
C112: 2.496498054 | D112: 3.176352043 | E112: -0.08675927381 | F112: 3.176352043 | I112: =F$303 -> 0.9 | J112: =G316 -> 4.330701365
C113: 2.512062257 | D113: 3.175001704 | E113: -0.08391000212 | F113: 3.175001704 | I113: =C$303 -> 0.6666666667 | J113: =D317 -> 4.9
C114: 2.527626459 | D114: 3.173695711 | E114: -0.08113060107 | F114: 3.173695711 | I114: =F$303 -> 0.9 | J114: =G317 -> 4.681677197
C115: 2.543190661 | D115: 3.172432978 | E115: -0.07842039319 | F115: 3.172432978 | I115: =C$303 -> 0.6666666667 | J115: =D318 -> 5.25
C116: 2.558754864 | D116: 3.171212427 | E116: -0.0757786588 | F116: 3.171212427 | I116: =F$303 -> 0.9 | J116: =G318 -> 5.059125668
C117: 2.574319066 | D117: 3.170032993 | E117: -0.07320463862 | F117: 3.170032993 | I117: =C$303 -> 0.6666666667 | J117: =D319 -> 5.6
C118: 2.589883268 | D118: 3.168893621 | E118: -0.07069753632 | F118: 3.168893621 | I118: =F$303 -> 0.9 | J118: =G319 -> 5.459718525
C119: 2.605447471 | D119: 3.167793271 | E119: -0.06825652108 | F119: 3.167793271 | I119: =C$303 -> 0.6666666667 | J119: =D320 -> 5.95
C120: 2.621011673 | D120: 3.166730912 | E120: -0.06588073006 | F120: 3.166730912 | I120: =F$303 -> 0.9 | J120: =G320 -> 5.877321152
C121: 2.636575875 | D121: 3.165705531 | E121: -0.06356927076 | F121: 3.165705531 | I121: =C$303 -> 0.6666666667 | J121: =D321 -> 6.3
C122: 2.652140078 | D122: 3.164716126 | E122: -0.0613212234 | F122: 3.164716126 | I122: =F$303 -> 0.9 | J122: =G321 -> 6.303736422
C123: 2.66770428 | D123: 3.16376171 | E123: -0.05913564324 | F123: 3.16376171 | I123: =C$303 -> 0.6666666667 | J123: =D322 -> 6.65
C124: 2.683268482 | D124: 3.162841311 | E124: -0.05701156273 | F124: 3.162841311 | I124: =F$303 -> 0.9 | J124: =G322 -> 6.729698634
C125: 2.698832685 | D125: 3.161953972 | E125: -0.05494799376 | F125: 3.161953972 | I125: =C$303 -> 0.6666666667 | J125: =D323 -> 7
C126: 2.714396887 | D126: 3.16109875 | E126: -0.0529439297 | F126: 3.16109875 | I126: =F$303 -> 0.9 | J126: =G323 -> 7.145997022
C127: 2.729961089 | D127: 3.16027472 | E127: -0.05099834748 | F127: 3.16027472 | H127: strip 4 | I127: =C$324 -> 1 | J127: =D324 -> 0
C128: 2.745525292 | D128: 3.159480971 | E128: -0.04911020953 | F128: 3.159480971 | I128: =F$324 -> 1.233333333 | J128: =G324 -> 0
C129: 2.761089494 | D129: 3.15871661 | E129: -0.04727846573 | F129: 3.15871661 | I129: =C$324 -> 1 | J129: =D325 -> 0.35
C130: 2.776653696 | D130: 3.157980758 | E130: -0.04550205522 | F130: 3.157980758 | I130: =F$324 -> 1.233333333 | J130: =G325 -> 0.4642992692
C131: 2.792217899 | D131: 3.157272555 | E131: =x*SIN(y) -> -0.04377990817 | F131: 3.157272555 | I131: =C$324 -> 1 | J131: =D326 -> 0.7
C132: =C131+dx -> 2.807782101 | D132: 3.156591156 | E132: -0.04211094756 | F132: =F131+E131*dx -> 3.156591156 | I132: =F$324 -> 1.233333333 | J132: =G326 -> 0.9147392291
C133: 2.823346304 | D133: =F133 -> 3.155935733 | E133: -0.04049409073 | F133: 3.155935733 | I133: =C$324 -> 1 | J133: =D327 -> 1.05
C134: 2.838910506 | D134: 3.155305474 | E134: -0.03892825104 | F134: 3.155305474 | I134: =F$324 -> 1.233333333 | J134: =G327 -> 1.339141075
C135: 2.854474708 | D135: 3.154699587 | E135: -0.03741233938 | F135: 3.154699587 | I135: =C$324 -> 1 | J135: =D328 -> 1.4
C136: 2.870038911 | D136: 3.154117294 | E136: -0.03594526557 | F136: 3.154117294 | I136: =F$324 -> 1.233333333 | J136: =G328 -> 1.728483243
C137: 2.885603113 | D137: 3.153557835 | E137: -0.03452593981 | F137: 3.153557835 | I137: =C$324 -> 1 | J137: =D329 -> 1.75
C138: 2.901167315 | D138: 3.153020466 | E138: -0.03315327398 | F138: 3.153020466 | I138: =F$324 -> 1.233333333 | J138: =G329 -> 2.077995316
C139: 2.916731518 | D139: 3.152504462 | E139: -0.0318261829 | F139: 3.152504462 | I139: =C$324 -> 1 | J139: =D330 -> 2.1
C140: 2.93229572 | D140: 3.152009113 | E140: -0.03054358553 | F140: 3.152009113 | I140: =F$324 -> 1.233333333 | J140: =G330 -> 2.387736456
C141: 2.947859922 | D141: 3.151533726 | E141: -0.02930440614 | F141: 3.151533726 | I141: =C$324 -> 1 | J141: =D331 -> 2.45
C142: 2.963424125 | D142: 3.151077626 | E142: -0.02810757535 | F142: 3.151077626 | I142: =F$324 -> 1.233333333 | J142: =G331 -> 2.662588234
C143: 2.978988327 | D143: 3.150640154 | E143: -0.02695203117 | F143: 3.150640154 | I143: =C$324 -> 1 | J143: =D332 -> 2.8
C144: 2.994552529 | D144: 3.150220667 | E144: -0.02583671999 | F144: 3.150220667 | I144: =F$324 -> 1.233333333 | J144: =G332 -> 2.911662717
C145: 3.010116732 | D145: 3.149818539 | E145: -0.02476059743 | F145: 3.149818539 | I145: =C$324 -> 1 | J145: =D333 -> 3.15
C146: 3.025680934 | D146: 3.149433161 | E146: -0.02372262924 | F146: 3.149433161 | I146: =F$324 -> 1.233333333 | J146: =G333 -> 3.147197584
C147: 3.041245136 | D147: 3.149063937 | E147: -0.02272179205 | F147: 3.149063937 | I147: =C$324 -> 1 | J147: =D334 -> 3.5
C148: 3.056809339 | D148: 3.14871029 | E148: -0.02175707416 | F148: 3.14871029 | I148: =F$324 -> 1.233333333 | J148: =G334 -> 3.383072257
C149: 3.072373541 | D149: 3.148371659 | E149: -0.0208274762 | F149: 3.148371659 | I149: =C$324 -> 1 | J149: =D335 -> 3.85
C150: 3.087937743 | D150: 3.148047496 | E150: -0.01993201179 | F150: 3.148047496 | I150: =F$324 -> 1.233333333 | J150: =G335 -> 3.633124954
C151: 3.103501946 | D151: 3.14773727 | E151: -0.01906970809 | F151: 3.14773727 | I151: =C$324 -> 1 | J151: =D336 -> 4.2
C152: 3.119066148 | D152: 3.147440465 | E152: -0.0182396064 | F152: 3.147440465 | I152: =F$324 -> 1.233333333 | J152: =G336 -> 3.909474743
C153: 3.13463035 | D153: 3.14715658 | E153: -0.01744076259 | F153: 3.14715658 | I153: =C$324 -> 1 | J153: =D337 -> 4.55
C154: 3.150194553 | D154: 3.146885128 | E154: -0.0166722476 | F154: 3.146885128 | I154: =F$324 -> 1.233333333 | J154: =G337 -> 4.221052047
C155: 3.165758755 | D155: 3.146625638 | E155: -0.01593314783 | F155: 3.146625638 | I155: =C$324 -> 1 | J155: =D338 -> 4.9
C156: 3.181322957 | D156: 3.146377651 | E156: -0.0152225655 | F156: 3.146377651 | I156: =F$324 -> 1.233333333 | J156: =G338 -> 4.572515796
C157: 3.19688716 | D157: 3.146140724 | E157: -0.01453961897 | F157: 3.146140724 | I157: =C$324 -> 1 | J157: =D339 -> 5.25
C158: 3.212451362 | D158: 3.145914427 | E158: -0.01388344303 | F158: 3.145914427 | I158: =F$324 -> 1.233333333 | J158: =G339 -> 4.963688502
C159: 3.228015564 | D159: 3.145698342 | E159: -0.01325318914 | F159: 3.145698342 | I159: =C$324 -> 1 | J159: =D340 -> 5.6
C160: 3.243579767 | D160: 3.145492067 | E160: -0.01264802564 | F160: 3.145492067 | I160: =F$324 -> 1.233333333 | J160: =G340 -> 5.389577787
C161: 3.259143969 | D161: 3.14529521 | E161: -0.01206713793 | F161: 3.14529521 | I161: =C$324 -> 1 | J161: =D341 -> 5.95
C162: 3.274708171 | D162: 3.145107395 | E162: -0.0115097286 | F162: 3.145107395 | I162: =F$324 -> 1.233333333 | J162: =G341 -> 5.840981728
C163: 3.290272374 | D163: 3.144928255 | E163: -0.01097501754 | F163: 3.144928255 | I163: =C$324 -> 1 | J163: =D342 -> 6.3
C164: 3.305836576 | D164: 3.144757438 | E164: -0.01046224202 | F164: 3.144757438 | I164: =F$324 -> 1.233333333 | J164: =G342 -> 6.305604633
C165: 3.321400778 | D165: 3.144594601 | E165: -0.00997065673 | F165: 3.144594601 | I165: =C$324 -> 1 | J165: =D343 -> 6.65
C166: 3.336964981 | D166: 3.144439416 | E166: -0.009499533823 | F166: 3.144439416 | I166: =F$324 -> 1.233333333 | J166: =G343 -> 6.769547951
C167: 3.352529183 | D167: 3.144291563 | E167: -0.009048162877 | F167: 3.144291563 | I167: =C$324 -> 1 | J167: =D344 -> 7
C168: 3.368093385 | D168: 3.144150736 | E168: -0.008615850881 | F168: 3.144150736 | I168: =F$324 -> 1.233333333 | J168: =G344 -> 7.218995533
C169: 3.383657588 | D169: 3.144016637 | E169: -0.008201922178 | F169: 3.144016637 | H169: strip 5 | I169: =C$345 -> 1.333333333 | J169: =D345 -> 0
C170: 3.39922179 | D170: 3.143888981 | E170: -0.007805718384 | F170: 3.143888981 | I170: =F$345 -> 1.566666667 | J170: =G345 -> 0
C171: 3.414785992 | D171: 3.143767491 | E171: -0.00742659829 | F171: 3.143767491 | I171: =C$345 -> 1.333333333 | J171: =D346 -> 0.35
C172: 3.430350195 | D172: 3.143651902 | E172: -0.007063937743 | F172: 3.143651902 | I172: =F$345 -> 1.566666667 | J172: =G346 -> 0.5023990255
C173: 3.445914397 | D173: 3.143541957 | E173: -0.006717129509 | F173: 3.143541957 | I173: =C$345 -> 1.333333333 | J173: =D347 -> 0.7
C174: 3.461478599 | D174: 3.143437411 | E174: -0.006385583117 | F174: 3.143437411 | I174: =F$345 -> 1.566666667 | J174: =G347 -> 0.9863189721
C175: 3.477042802 | D175: 3.143338024 | E175: -0.006068724687 | F175: 3.143338024 | I175: =C$345 -> 1.333333333 | J175: =D348 -> 1.05
C176: 3.492607004 | D176: 3.143243569 | E176: -0.005765996746 | F176: 3.143243569 | I176: =F$345 -> 1.566666667 | J176: =G348 -> 1.435521434
C177: 3.508171206 | D177: 3.143153826 | E177: -0.005476858025 | F177: 3.143153826 | I177: =C$345 -> 1.333333333 | J177: =D349 -> 1.4
C178: 3.523735409 | D178: 3.143068583 | E178: -0.005200783247 | F178: 3.143068583 | I178: =F$345 -> 1.566666667 | J178: =G349 -> 1.837977658
C179: 3.539299611 | D179: 3.142987637 | E179: -0.004937262902 | F179: 3.142987637 | I179: =C$345 -> 1.333333333 | J179: =D350 -> 1.75
C180: 3.554863813 | D180: 3.142910793 | E180: -0.00468580301 | F180: 3.142910793 | I180: =F$345 -> 1.566666667 | J180: =G350 -> 2.187327087
C181: 3.570428016 | D181: 3.142837862 | E181: -0.004445924877 | F181: 3.142837862 | I181: =C$345 -> 1.333333333 | J181: =D351 -> 2.1
C182: 3.585992218 | D182: 3.142768664 | E182: -0.004217164838 | F182: 3.142768664 | I182: =F$345 -> 1.566666667 | J182: =G351 -> 2.483648607
C183: 3.60155642 | D183: 3.142703028 | E183: -0.003999073997 | F183: 3.142703028 | I183: =C$345 -> 1.333333333 | J183: =D352 -> 2.45
C184: 3.617120623 | D184: 3.142640785 | E184: -0.003791217953 | F184: 3.142640785 | I184: =F$345 -> 1.566666667 | J184: =G352 -> 2.733450979
C185: 3.632684825 | D185: 3.142581778 | E185: -0.003593176532 | F185: 3.142581778 | I185: =C$345 -> 1.333333333 | J185: =D353 -> 2.8
C186: 3.648249027 | D186: 3.142525853 | E186: -0.003404543497 | F186: 3.142525853 | I186: =F$345 -> 1.566666667 | J186: =G353 -> 2.948883622
C187: 3.66381323 | D187: 3.142472864 | E187: -0.003224926267 | F187: 3.142472864 | I187: =C$345 -> 1.333333333 | J187: =D354 -> 3.15
C188: 3.679377432 | D188: 3.142422671 | E188: -0.003053945624 | F188: 3.142422671 | I188: =F$345 -> 1.566666667 | J188: =G354 -> 3.146263446
C189: 3.694941634 | D189: 3.142375138 | E189: -0.002891235426 | F189: 3.142375138 | I189: =C$345 -> 1.333333333 | J189: =D355 -> 3.5
C190: 3.710505837 | D190: 3.142330139 | E190: -0.002736442304 | F190: 3.142330139 | I190: =F$345 -> 1.566666667 | J190: =G355 -> 3.344096343
C191: 3.726070039 | D191: 3.142287548 | E191: -0.002589225369 | F191: 3.142287548 | I191: =C$345 -> 1.333333333 | J191: =D356 -> 3.85
C192: 3.741634241 | D192: 3.142247249 | E192: -0.002449255912 | F192: 3.142247249 | I192: =F$345 -> 1.566666667 | J192: =G356 -> 3.560833272
C193: 3.757198444 | D193: 3.142209128 | E193: -0.002316217104 | F193: 3.142209128 | I193: =C$345 -> 1.333333333 | J193: =D357 -> 4.2
C194: 3.772762646 | D194: 3.142173078 | E194: -0.002189803698 | F194: 3.142173078 | I194: =F$345 -> 1.566666667 | J194: =G357 -> 3.81263299
C195: 3.788326848 | D195: 3.142138996 | E195: =x*SIN(y) -> -0.002069721732 | F195: 3.142138996 | I195: =C$345 -> 1.333333333 | J195: =D358 -> 4.55
C196: =C195+dx -> 3.803891051 | D196: 3.142106782 | E196: -0.001955688223 | F196: =F195+E195*dx -> 3.142106782 | I196: =F$345 -> 1.566666667 | J196: =G358 -> 4.11140273
C197: 3.819455253 | D197: =F197 -> 3.142076343 | E197: -0.001847430878 | F197: 3.142076343 | I197: =C$345 -> 1.333333333 | J197: =D359 -> 4.9
C198: 3.835019455 | D198: 3.142047589 | E198: -0.001744687797 | F198: 3.142047589 | I198: =F$345 -> 1.566666667 | J198: =G359 -> 4.463354394
C199: 3.850583658 | D199: 3.142020435 | E199: -0.001647207177 | F199: 3.142020435 | I199: =C$345 -> 1.333333333 | J199: =D360 -> 5.25
C200: 3.86614786 | D200: 3.141994797 | E200: -0.001554747025 | F200: 3.141994797 | I200: =F$345 -> 1.566666667 | J200: =G360 -> 4.868251336
... 558 more rows

Sheet Sheet3
